bitfinex/quotes_SOLUSD_20250814
["timestamp","ask_amount","ask_price","bid_price","bid_amount"]
[1755180184244,0.69,194.36,194.21,42.36]
[1755180184245,0.51216389,194.35,194.25,0.68]
[1755180184448,0.69,194.34,194.13,12.87751229]
[1755180184655,0.51216389,194.33,194.17,3.35629]
[1755180184883,10.0,194.3,194.09,0.68]
[1755180185184,10.0,194.3,194.1,47.51198351]
[1755180185185,18.01523574,194.28,194.1,47.51198351]
[1755180185383,1.20216389,194.27,194.11,0.68]
[1755180185585,0.69,194.26,194.1,42.36]
[1755180185795,0.51216389,194.25,194.08,0.68]
[1755180185954,0.69,194.24,194.09,42.36]
[1755180186284,0.51216389,194.27,194.1,0.68]
[1755180186460,0.51216389,194.27,194.14,18.16807544]
[1755180186661,0.51216389,194.27,194.13,15.10621557]
[1755180186662,0.69,194.26,194.13,15.10621557]
[1755180186888,26.51216389,194.25,194.14,42.38]
[1755180187201,26.0,194.2,194.14,42.38]
[1755180187360,0.51216389,194.19,194.14,42.38]
[1755180187560,0.51216389,194.19,194.05,15.450776]
[1755180187561,1.20216389,194.19,194.05,15.450776]
[1755180187765,1.20216389,194.19,194.06,42.36]
[1755180187966,26.0,194.15,194.06,60.52807544]
[1755180188198,1.20216389,194.14,194.01,0.68]
[1755180188365,1.20216389,194.14,194.05,18.16807544]
[1755180188569,26.51216389,194.14,194.05,18.84807544]
[1755180188904,16.145553,194.17,194.05,18.84807544]
[1755180188905,15.455553,194.17,194.07,15.10621557]
[1755180189063,15.455553,194.17,194.16,38.42468243]
[1755180189386,0.51216389,194.3,194.17,15.10621557]
[1755180189688,6.34780774,194.34,194.26,33.27429101]
[1755180189891,26.0,194.31,194.18,33.92]
[1755180190060,1.20216389,194.3,194.19,15.10621557]
[1755180190266,26.0,194.27,194.2,42.36]
[1755180190466,1.20216389,194.26,194.2,42.36]
[1755180190966,26.0,194.27,194.2,42.36]
[1755180190967,26.0,194.27,194.21,15.10621557]
[1755180191171,0.51216389,194.26,194.21,15.10621557]
[1755180191404,15.443618,194.31,194.23,33.27429101]
[1755180191695,0.51216389,194.33,194.22,15.10621557]
[1755180191894,0.51216389,194.33,194.25,15.10621557]
[1755180192120,0.69,194.32,194.26,42.38]
[1755180192268,15.10621557,194.3,194.08,16.11833202]
[1755180192474,15.10621557,194.27,194.09,42.38]
[1755180192702,10.0,194.25,194.09,42.38]
[1755180192908,1.20216389,194.24,194.04,18.16807544]
[1755180193090,43.76480278,194.22,194.05,42.38]
[1755180193289,1.20216389,194.21,194.1,18.16807544]
[1755180193490,0.51216389,194.21,194.13,18.16807544]
[1755180193709,0.69,194.25,194.15,33.27429101]
[1755180193710,5.14841566,194.24,194.15,33.27429101]
[1755180193935,0.51216389,194.23,194.15,33.27429101]
[1755180194226,0.69,194.29,194.2,15.10621557]
[1755180194516,0.69,194.29,194.09,26.51522489]
[1755180194517,0.51216389,194.28,194.22,15.10621557]
[1755180194719,0.51216389,194.28,194.23,42.36]
[1755180195015,26.0,194.26,194.16,15.10621557]
[1755180195216,26.0,194.21,194.18,15.10621557]
[1755180195600,26.0,194.21,194.07,0.51527799]
[1755180195794,26.0,194.21,194.12,18.16807544]
[1755180196000,0.51216389,194.2,194.08,42.38]
[1755180196194,26.69,194.21,194.13,18.16807544]
[1755180196503,0.51216389,194.2,194.13,15.10621557]
[1755180196708,26.0,194.22,194.17,33.27429101]
[1755180196897,26.0,194.22,194.09,0.51522489]
[1755180196898,0.69,194.29,194.21,33.27429101]
[1755180197226,0.51216389,194.34,194.23,33.27429101]
[1755180197227,0.51216389,194.31,194.23,33.27429101]
[1755180197390,1.20216389,194.3,194.19,18.16807544]
[1755180197595,0.51216389,194.34,194.22,15.10621557]
[1755180197894,25.51533935,194.52,194.16,26.0]
[1755180197895,0.69,194.38,194.26,15.10621557]
[1755180198106,0.51216389,194.37,194.27,15.10621557]
[1755180198421,4.91577737,194.37,194.29,15.10621557]
[1755180198720,0.69,194.36,194.29,15.10621557]
[1755180198921,5.14562107,194.34,194.29,15.10621557]
[1755180199101,26.0,194.31,194.13,15.440439]
[1755180199302,1.20216389,194.3,194.15,18.16807544]
[1755180199813,1.20216389,194.3,194.14,42.36]
[1755180199814,0.69,194.29,194.19,33.27429101]
[1755180200009,26.0,194.31,194.19,15.10621557]
[1755180200229,1.20216389,194.3,194.2,42.36]
[1755180200426,26.0,194.29,194.2,42.36]
[1755180200605,26.0,194.24,194.13,42.36]
[1755180200808,1.14551104,194.23,194.13,42.36]
[1755180201008,26.0,194.19,194.14,15.10621557]
[1755180201205,0.69,194.18,194.14,15.10621557]
[1755180201436,1.08885819,194.18,194.14,15.10621557]
[1755180201631,0.69,194.17,194.14,42.36]
[1755180202006,26.0,194.19,194.15,15.10621557]
[1755180202427,0.39885819,194.18,194.15,15.10621557]
[1755180202625,0.39885819,194.18,194.14,42.36]
[1755180202626,1.08885819,194.18,194.14,42.36]
[1755180202943,0.69,194.17,194.14,42.36]
[1755180203131,6.23924961,194.16,194.14,42.38]
[1755180203630,0.69,194.15,194.04,15.10621557]
[1755180203833,0.69,194.15,194.03,33.97]
[1755180203834,0.39885819,194.14,194.06,15.10621557]
[1755180204010,0.69,194.13,194.08,15.10621557]
[1755180204210,0.39885819,194.12,194.03,33.97]
[1755180204436,0.39885819,194.12,194.04,42.38]
[1755180204818,0.39885819,194.15,194.05,33.27429101]
[1755180205015,5.84039142,194.16,194.07,33.27429101]
[1755180205212,0.69,194.15,194.04,42.38]
[1755180205428,5.15039142,194.16,194.1,18.16807544]
[1755180205638,5.15039142,194.16,194.05,15.10621557]
[1755180205941,0.39885819,194.18,194.11,15.10621557]
[1755180206130,0.39885819,194.18,194.1,15.10621557]
[1755180206633,0.39885819,194.19,194.1,18.16807544]
[1755180206836,5.14906544,194.21,194.04,18.03744694]
[1755180206837,27.08885819,194.18,194.05,18.16807544]
[1755180207044,27.08885819,194.18,194.04,15.10621557]
[1755180207045,26.0,194.13,194.06,57.48621557]
[1755180207332,0.39885819,194.12,194.06,42.38]
[1755180207737,1.08885819,194.12,194.03,33.97]
[1755180207948,1.08885819,194.12,194.08,15.10621557]
[1755180208116,26.0,194.13,194.08,15.10621557]
[1755180208316,0.69,194.11,194.08,15.10621557]
[1755180208517,0.39885819,194.1,194.08,15.10621557]
[1755180208714,0.69,194.11,194.08,15.10621557]
[1755180208933,0.39885819,194.1,194.07,42.38]
[1755180209117,26.0,194.08,194.03,33.97]
[1755180209315,18.03137738,194.11,194.03,33.97]
[1755180209316,27.08885819,194.07,194.03,33.97]
[1755180209512,0.69,194.06,194.04,42.52]
[1755180209716,0.39885819,194.05,194.04,42.52]
[1755180209931,6.18273682,194.05,194.04,42.52]
[1755180210141,0.69,194.08,194.05,15.10621557]
[1755180210326,26.69,194.08,194.04,42.52]
[1755180210643,5.15171809,194.11,194.05,15.10621557]
[1755180210831,5.15092201,194.14,194.05,33.27429101]
[1755180211139,5.15092201,194.14,194.04,5.15355123]
[1755180211344,26.0,194.11,194.05,57.68621557]
[1755180211521,0.45551104,194.13,194.05,57.68621557]
[1755180211720,10.23472635,194.14,194.11,15.10621557]
[1755180211721,5.08380434,194.14,194.11,15.10621557]
[1755180212029,26.0,194.14,194.13,15.10621557]
[1755180212254,5.106405,194.18,194.13,57.68621557]
[1755180212558,26.0,194.15,194.13,42.58]
[1755180212853,1.15551104,194.14,194.03,0.03]
[1755180213022,18.03008447,194.12,194.03,0.03]
[1755180213226,1.15551104,194.11,194.03,0.03]
[1755180213438,0.7,194.1,194.03,0.03]
[1755180213636,0.45551104,194.09,194.03,0.03]
[1755180214030,0.45551104,194.09,194.04,42.66]
[1755180214323,0.7,194.08,194.04,42.66]
[1755180214660,1.15551104,194.07,194.04,42.66]
[1755180214823,0.7,194.1,194.05,15.10621557]
[1755180215022,5.15251442,194.08,194.05,15.10621557]
[1755180215645,1.15551104,194.07,194.04,42.66]
[1755180215849,1.15551104,194.07,194.03,0.03]
[1755180215850,0.7,194.06,194.03,0.03]
[1755180216055,18.03380048,194.08,194.03,0.03]
[1755180216056,0.45551104,194.05,194.03,0.03]
[1755180216223,26.0,194.05,194.03,0.03]
[1755180216556,1.15551104,194.04,194.03,0.03]
[1755180216859,26.0,194.05,194.03,0.03]
[1755180217351,5.15357658,194.04,194.03,0.03]
[1755180217754,5.85357658,194.04,194.03,0.03]
[1755180217956,5.15357658,194.04,194.03,0.03]
[1755180218131,5.85357658,194.04,194.03,42.57]
[1755180219033,5.15357658,194.04,194.03,42.57]
[1755180219243,26.0,194.04,194.03,42.57]
[1755180219638,26.0,194.04,194.03,57.67621557]
[1755180219848,5.15281252,194.07,194.04,15.10621557]
[1755180220137,26.0,194.05,194.04,15.10621557]
[1755180220828,0.45551104,194.1,194.04,15.10621557]
[1755180221026,8.40075042,194.31,194.04,15.10621557]
[1755180221027,0.7,194.12,194.04,15.10621557]
[1755180221246,26.0,194.08,194.04,15.10621557]
[1755180221432,1.15551104,194.07,194.03,0.03]
[1755180221648,0.7,194.06,194.04,42.4]
[1755180221827,26.0,194.08,194.04,42.4]
[1755180222329,26.0,194.08,194.05,15.10621557]
[1755180222536,5.1506567,194.15,194.07,15.10621557]
[1755180222742,4.24078225,194.14,194.07,15.10621557]
[1755180223065,26.0,194.12,194.08,42.42]
[1755180223357,5.1514527,194.12,194.08,42.42]
[1755180223659,5.1514527,194.12,194.08,57.52621557]
[1755180223660,5.60696374,194.12,194.08,57.52621557]
[1755180223837,5.1514527,194.12,194.09,15.10621557]
[1755180224039,6.30668693,194.14,194.09,15.10621557]
[1755180224356,3.79150029,194.13,194.09,15.10621557]
[1755180224666,26.0,194.17,194.11,15.10621557]
[1755180224833,5.93565959,194.21,194.1,42.42]
[1755180224834,3.79782187,194.16,194.13,15.10621557]
[1755180225031,5.23565959,194.21,194.15,15.10621557]
[1755180225231,3.79748243,194.2,194.17,15.10621557]
[1755180225535,0.06,194.24,194.19,15.10621557]
[1755180225948,0.06,194.24,194.21,15.10621557]
[1755180226149,0.06,194.24,194.23,15.10621557]
[1755180227369,3.86142445,194.24,194.23,15.10621557]
[1755180227736,0.06,194.24,194.23,15.10621557]
[1755180227963,0.06,194.24,194.23,33.27429101]
[1755180228260,0.06,194.24,194.23,38.42282625]
[1755180228668,0.06,194.28,194.23,20.25475081]
[1755180228868,0.06,194.28,194.27,33.27429101]
[1755180229164,0.06,194.28,194.27,38.42176617]
[1755180229453,0.06,194.28,194.27,81.33651368]
[1755180229674,31.24362329,194.42,194.28,25.10621557]
[1755180229953,3.80212355,194.41,194.39,15.10621557]
[1755180230157,3.80212355,194.41,194.29,0.51469452]
[1755180230158,5.94354902,194.42,194.41,15.10621557]
[1755180230354,9.06738892,194.42,194.41,57.50621557]
[1755180230559,0.1,194.42,194.41,57.50621557]
[1755180231032,0.8,194.42,194.41,57.50621557]
[1755180231233,9.04081715,194.42,194.41,57.50621557]
[1755180231469,9.04081715,194.42,194.41,42.4]
[1755180231470,27.79826043,194.42,194.41,42.4]
[1755180231666,26.0,194.39,194.22,12.87134599]
[1755180231972,4.4973134,194.38,194.3,33.27429101]
[1755180232135,3.7973134,194.37,194.32,15.10621557]
[1755180232337,4.95282444,194.36,194.23,33.96]
[1755180232553,3.7973134,194.35,194.29,18.16807544]
[1755180232768,26.7,194.39,194.31,15.10621557]
[1755180233069,10.44218765,194.42,194.36,15.10621557]
[1755180233278,26.0,194.39,194.38,15.10621557]
[1755180233851,10.44218765,194.42,194.38,15.10621557]
[1755180234052,10.44218765,194.42,194.4,15.10621557]
[1755180234053,0.1,194.42,194.4,15.10621557]
[1755180234257,0.1,194.42,194.41,57.48621557]
[1755180234640,0.1,194.42,194.41,155.35429101]
[1755180235247,0.1,194.42,194.41,137.18621557]
[1755180235668,0.1,194.42,194.41,160.49805933]
[1755180236374,0.1,194.42,194.41,137.18621557]
[1755180236550,0.1,194.42,194.41,137.16621557]
[1755180236551,5.94350375,194.42,194.41,137.16621557]
[1755180236866,5.94350375,194.42,194.41,42.36]
[1755180237071,5.94350375,194.42,194.41,57.46621557]
[1755180237367,31.94350375,194.42,194.41,42.36]
[1755180237542,5.94350375,194.42,194.41,42.36]
[1755180237756,18.80226313,194.42,194.3,15.10621557]
[1755180237952,1.15551104,194.41,194.29,15.428528]
[1755180238176,1.15551104,194.41,194.28,23.82990131]
[1755180238474,26.0,194.39,194.31,33.27429101]
[1755180238675,26.0,194.39,194.29,15.10621557]
[1755180238978,26.0,194.39,194.32,15.10621557]
[1755180239166,26.7,194.39,194.31,15.10621557]
[1755180239477,5.14456219,194.38,194.31,33.27429101]
[1755180239784,0.1,194.42,194.33,15.10621557]
[1755180239957,26.1,194.42,194.36,15.10621557]
[1755180240361,0.1,194.42,194.41,18.16807544]
[1755180240566,0.06,194.46,194.42,15.10621557]
[1755180240771,0.06,194.58,194.46,15.10621557]
[1755180240980,0.06,194.58,194.57,33.27429101]
[1755180241279,0.06,194.58,194.57,75.71429101]
[1755180241453,0.06,194.58,194.57,80.85382947]
[1755180241854,0.06,194.58,194.57,81.36778331]
[1755180242081,7.193717,194.68,194.58,15.10621557]
[1755180242284,0.8,194.72,194.57,94.21662948]
[1755180242285,0.1,194.72,194.6,15.10621557]
[1755180242490,5.32399726,194.72,194.68,18.16807544]
[1755180242781,5.32399726,194.72,194.71,18.16807544]
[1755180242986,0.1,194.72,194.71,33.78787531]
[1755180243355,0.1,194.72,194.71,76.22787531]
[1755180243560,0.1,194.72,194.71,81.36371835]
[1755180243756,0.06,194.77,194.72,15.10621557]
[1755180243964,0.06,194.77,194.76,33.27429101]
[1755180244172,0.06,194.77,194.76,76.18774346]
[1755180244383,0.06,194.77,194.76,15.10621557]
[1755180244561,0.76,194.77,194.76,15.10621557]
[1755180244763,0.76,194.77,194.76,57.56621557]
[1755180245065,26.0,194.73,194.63,15.10621557]
[1755180245258,26.0,194.73,194.69,15.10621557]
[1755180245482,0.7,194.72,194.71,15.10621557]
[1755180245685,0.7,194.72,194.64,15.10621557]
[1755180245884,0.7,194.72,194.58,18.16807544]
[1755180245885,0.45551104,194.71,194.58,18.16807544]
[1755180246093,0.7,194.7,194.6,18.16807544]
[1755180246275,0.7,194.7,194.61,15.10621557]
[1755180246580,0.7,194.74,194.69,15.10621557]
[1755180246787,0.06,194.77,194.71,18.16807544]
[1755180246956,0.06,194.77,194.72,15.10621557]
[1755180247158,0.06,194.77,194.71,15.10621557]
[1755180247159,0.76,194.77,194.71,15.10621557]
[1755180247355,0.76,194.77,194.73,15.10621557]
[1755180247579,0.76,194.77,194.75,15.10621557]
[1755180247580,0.06,194.77,194.75,15.10621557]
[1755180247886,0.06,194.77,194.55,5.14006682]
[1755180247887,1.15551104,194.76,194.55,5.14006682]
[1755180248068,0.7,194.75,194.57,18.16807544]
[1755180248275,0.7,194.75,194.59,18.16807544]
[1755180248276,0.45551104,194.74,194.59,18.16807544]
[1755180248473,0.7,194.73,194.6,18.16807544]
[1755180248785,0.45551104,194.72,194.61,42.52]
[1755180248997,0.7,194.71,194.62,42.54]
[1755180249169,0.7,194.71,194.53,33.92]
[1755180249170,0.45551104,194.7,194.54,15.10621557]
[1755180249370,0.45551104,194.7,194.53,52.08807544]
[1755180249371,26.0,194.65,194.53,52.08807544]
[1755180249585,1.15551104,194.64,194.53,33.92]
[1755180249785,0.7,194.63,194.53,33.92]
[1755180249967,0.45551104,194.62,194.53,33.92]
[1755180250173,0.7,194.61,194.53,33.92]
[1755180250471,26.0,194.59,194.53,33.92]
[1755180250673,1.15551104,194.58,194.54,42.54]
[1755180251174,0.7,194.57,194.54,42.54]
[1755180251377,0.7,194.56,194.55,15.10621557]
[1755180251688,26.0,194.56,194.55,57.58621557]
[1755180251880,26.7,194.56,194.55,57.58621557]
[1755180252272,26.7,194.56,194.55,42.48]
[1755180252467,26.7,194.56,194.55,42.46]
[1755180252785,26.7,194.56,194.54,15.10621557]
[1755180252990,0.7,194.55,194.53,33.92]
[1755180253365,5.14059528,194.53,194.42,18.16807544]
[1755180253897,0.7,194.52,194.44,33.27429101]
[1755180254181,0.7,194.52,194.46,15.10621557]
[1755180254391,0.7,194.52,194.48,15.10621557]
[1755180254599,0.7,194.51,194.49,42.4]
[1755180254807,17.99208348,194.53,194.5,15.10621557]
[1755180255100,5.8402998,194.55,194.5,15.10621557]
[1755180255473,12.84943504,194.57,194.5,15.10621557]
[1755180255474,5.14059528,194.53,194.5,15.10621557]
[1755180255673,5.84059528,194.53,194.5,15.10621557]
[1755180255874,12.84943504,194.57,194.5,15.10621557]
[1755180255875,0.7,194.57,194.5,15.10621557]
[1755180256181,26.0,194.56,194.5,33.27429101]
[1755180256390,26.0,194.56,194.5,15.10621557]
[1755180256895,5.19887866,194.6,194.52,15.10621557]
[1755180257094,26.7,194.58,194.54,15.10621557]
[1755180257393,5.13980263,194.56,194.55,42.34]
[1755180257596,5.83980263,194.56,194.55,42.34]
[1755180257898,26.0,194.56,194.55,57.44621557]
[1755180258401,0.7,194.56,194.55,57.44621557]
[1755180258600,0.7,194.56,194.55,42.34]
[1755180258808,0.7,194.56,194.51,15.10621557]
[1755180259009,0.45551104,194.55,194.47,0.03]
[1755180259171,0.7,194.54,194.47,0.03]
[1755180259377,26.0,194.5,194.47,0.03]
[1755180259578,26.7,194.5,194.47,0.03]
[1755180260284,26.7,194.5,194.49,15.10621557]
[1755180261482,5.84138817,194.5,194.49,15.10621557]
[1755180261786,26.0,194.51,194.49,15.10621557]
[1755180262623,26.0,194.51,194.47,0.03]
[1755180262624,0.7,194.5,194.47,0.03]
[1755180262809,26.0,194.51,194.48,57.40621557]
[1755180262810,0.7,194.49,194.48,57.40621557]
[1755180263315,26.0,194.51,194.49,15.10621557]
[1755180263519,31.84131286,194.51,194.49,15.10621557]
[1755180264043,26.7,194.51,194.49,15.10621557]
[1755180264210,26.0,194.5,194.49,15.10621557]
[1755180264817,0.7,194.5,194.49,15.10621557]
[1755180265322,26.7,194.5,194.49,15.10621557]
[1755180266012,5.84138817,194.5,194.49,15.10621557]
[1755180266328,0.7,194.5,194.49,15.10621557]
[1755180266509,31.14084572,194.53,194.49,15.10621557]
[1755180266829,0.7,194.52,194.49,15.10621557]
[1755180267127,1.15551104,194.52,194.49,15.10621557]
[1755180267333,4.45750372,194.51,194.37,0.2]
[1755180267535,0.45551104,194.52,194.09,79.73]
[1755180267536,26.0,194.38,194.22,18.36807544]
[1755180267732,1.15551104,194.37,194.22,0.2]
[1755180267949,0.7,194.36,194.35,15.423768]
[1755180268311,0.7,194.36,194.32,42.32]
[1755180268545,1.15551104,194.35,194.32,42.32]
[1755180268740,0.7,194.35,194.33,15.10621557]
[1755180269133,0.7,194.34,194.32,42.32]
[1755180269333,1.15551104,194.33,194.32,42.32]
[1755180269513,0.7,194.36,194.32,42.32]
[1755180269719,25.71717834,194.43,194.32,42.32]
[1755180269720,5.14535631,194.35,194.32,42.32]
[1755180270036,5.14429754,194.39,194.33,15.10621557]
[1755180270241,0.45551104,194.38,194.33,15.10621557]
[1755180270421,0.45551104,194.38,194.32,42.32]
[1755180270422,4.44477038,194.37,194.32,42.32]
[1755180270620,4.90072276,194.36,194.32,42.32]
[1755180270827,4.44521172,194.35,194.32,42.32]
[1755180271129,4.90096482,194.34,194.32,42.32]
[1755180271317,0.45551104,194.34,194.32,42.32]
[1755180271517,9.59192696,194.33,194.19,0.2]
[1755180271753,0.45551104,194.32,194.2,15.10621557]
[1755180272048,26.0,194.3,194.21,33.27429101]
[1755180272344,26.0,194.3,194.22,33.27429101]
[1755180272529,26.0,194.3,194.22,15.10621557]
[1755180272729,26.0,194.3,194.24,15.10621557]
[1755180273121,12.85999509,194.41,194.28,33.27429101]
[1755180273335,15.432495,194.41,194.3,15.10621557]
[1755180273537,26.0,194.35,194.3,15.10621557]
[1755180273840,1.12551104,194.34,194.3,15.10621557]
[1755180274345,4.44648319,194.33,194.3,15.10621557]
[1755180274645,0.45551104,194.34,194.3,15.10621557]
[1755180274860,0.67,194.33,194.29,42.32]
[1755180275025,4.232058,194.32,194.19,0.03]
[1755180275218,4.44672391,194.31,194.21,15.10621557]
[1755180275438,0.45551104,194.34,194.24,18.16807544]
[1755180275652,0.67,194.39,194.29,15.10621557]
[1755180275849,26.0,194.37,194.31,15.10621557]
[1755180276166,26.0,194.37,194.28,18.16807544]
[1755180276167,4.8989477,194.36,194.28,42.32]
[1755180276337,4.44343666,194.35,194.26,42.78]
[1755180276536,4.89824539,194.34,194.26,42.78]
[1755180276734,3.77273435,194.33,194.27,15.10621557]
[1755180276934,1.12551104,194.32,194.26,42.78]
[1755180277133,0.67,194.31,194.26,42.78]
[1755180277363,1.12551104,194.3,194.26,42.78]
[1755180277534,26.0,194.27,194.26,57.88621557]
[1755180278169,26.67,194.27,194.26,57.88621557]
[1755180278644,31.86653175,194.27,194.26,42.78]
[1755180279768,37.01400691,194.27,194.26,42.78]
[1755180280364,31.19653175,194.27,194.26,57.88621557]
[1755180280567,5.19653175,194.27,194.26,57.88621557]
[1755180280754,20.58574558,194.33,194.27,15.10621557]
[1755180281134,5.14610258,194.33,194.27,15.10621557]
[1755180281642,5.14562107,194.34,194.27,15.10621557]
[1755180282147,5.14537338,194.35,194.27,38.42171636]
[1755180282458,20.58102819,194.38,194.29,33.27429101]
[1755180282664,5.14456219,194.38,194.31,15.10621557]
[1755180282874,26.0,194.35,194.31,15.10621557]
[1755180283088,26.67,194.35,194.31,15.10621557]
[1755180283372,26.0,194.35,194.31,15.10621557]
[1755180283750,26.0,194.33,194.31,15.10621557]
[1755180284271,0.67,194.32,194.23,15.10621557]
[1755180284471,1.12551104,194.32,194.25,15.10621557]
[1755180284849,0.67,194.31,194.25,15.10621557]
[1755180285182,0.45551104,194.3,194.24,42.58]
[1755180285359,0.67,194.29,194.19,0.03]
[1755180285544,0.45551104,194.28,194.19,0.03]
[1755180285746,26.0,194.24,194.19,0.03]
[1755180285947,1.12551104,194.23,194.2,42.56]
[1755180286374,0.67,194.22,194.2,42.56]
[1755180287173,26.0,194.24,194.21,15.10621557]
[1755180287468,0.67,194.23,194.21,15.10621557]
[1755180287661,5.14880032,194.22,194.2,42.56]
[1755180287839,0.67,194.21,194.2,42.56]
[1755180288259,1.12551104,194.21,194.17,0.03]
[1755180288474,1.12551104,194.21,194.05,33.94]
[1755180288475,0.67,194.2,194.05,33.94]
[1755180288767,4.21683454,194.19,194.05,33.94]
[1755180288944,4.4313235,194.18,194.05,33.94]
[1755180289144,1.12551104,194.17,194.05,33.94]
[1755180289447,0.67,194.16,194.06,42.42]
[1755180289778,5.15092201,194.14,194.06,42.42]
[1755180289984,26.0,194.11,194.07,15.10621557]
[1755180290854,0.67,194.1,194.06,15.10621557]
[1755180291061,26.0,194.11,194.07,42.36]
[1755180291671,26.0,194.08,194.07,42.36]
[1755180291877,26.0,194.08,194.06,15.10621557]
[1755180291878,26.0,194.07,194.06,15.10621557]
[1755180292190,26.0,194.07,194.06,57.46621557]
[1755180294001,31.17153886,194.07,194.06,57.46621557]
[1755180294592,5.17153886,194.07,194.06,57.46621557]
[1755180294788,16.12396,194.15,194.06,62.81926101]
[1755180295360,16.12396,194.15,194.1,15.10621557]
[1755180295361,5.09279744,194.15,194.1,15.10621557]
[1755180295600,6.27484162,194.2,194.12,15.10621557]
[1755180295793,10.59992431,194.2,194.12,15.10621557]
[1755180295965,10.14441327,194.2,194.12,15.10621557]
[1755180296171,5.81933058,194.2,194.12,15.10621557]
[1755180296372,5.14933058,194.2,194.12,33.27429101]
[1755180296665,9.46735875,194.22,194.12,38.42573502]
[1755180296862,5.1490491,194.22,194.14,15.10621557]
[1755180297062,5.14363692,194.23,194.16,33.27429101]
[1755180297263,5.14802244,194.25,194.16,33.27429101]
[1755180297482,5.14802244,194.25,194.16,15.10621557]
[1755180297686,26.0,194.22,194.16,15.10621557]
[1755180297907,26.0,194.18,194.17,42.38]
[1755180298107,26.0,194.18,194.17,57.48621557]
[1755180298908,5.14882947,194.22,194.18,15.10621557]
[1755180299084,26.0,194.19,194.18,15.10621557]
[1755180299998,5.22070616,194.25,194.18,38.6241261]
[1755180300199,0.06,194.26,194.24,15.10621557]
[1755180300403,0.06,194.26,194.25,57.48621557]
[1755180300711,5.24498017,194.26,194.25,57.48621557]
[1755180301000,0.06,194.26,194.25,57.48621557]
[1755180301310,0.06,194.26,194.25,75.85429101]
[1755180301478,5.147185,194.33,194.28,15.10621557]
[1755180301673,5.147185,194.33,194.32,33.27429101]
[1755180301922,0.7,194.42,194.33,15.10621557]
[1755180302210,0.7,194.38,194.34,57.48621557]
[1755180302407,0.7,194.37,194.25,15.10621557]
[1755180302705,0.7,194.37,194.27,15.10621557]
[1755180303115,5.2149151,194.37,194.3,18.16807544]
[1755180303414,0.06,194.39,194.36,18.16807544]
[1755180303715,0.06,194.39,194.31,42.97464155]
[1755180303716,0.06,194.39,194.37,57.48621557]
[1755180303899,26.0,194.38,194.31,0.08]
[1755180304212,0.76,194.39,194.32,57.48621557]
[1755180304412,26.0,194.35,194.32,15.10621557]
[1755180304613,0.7,194.34,194.28,15.10621557]
[1755180304802,0.7,194.34,194.33,15.10621557]
[1755180305716,0.45551104,194.38,194.34,15.10621557]
[1755180305717,5.85510804,194.38,194.34,15.10621557]
[1755180305932,0.06,194.39,194.34,15.10621557]
[1755180306226,10.21944281,194.39,194.34,15.10621557]
[1755180306421,4.47901868,194.38,194.34,15.10621557]
[1755180306628,4.47901868,194.38,194.35,42.38]
[1755180306629,0.7,194.37,194.35,42.38]
[1755180306796,0.45551104,194.38,194.36,42.36]
[1755180306994,5.07512911,194.39,194.37,42.44]
[1755180307189,0.06,194.39,194.38,0.08]
[1755180307393,0.06,194.39,194.37,42.36]
[1755180307620,0.06,194.39,194.38,18.24807544]
[1755180307821,0.06,194.39,194.38,23.39263763]
[1755180308025,0.06,194.39,194.38,5.14456219]
[1755180308240,0.06,194.39,194.38,23.39263763]
[1755180308423,0.06,194.39,194.38,5.22456219]
[1755180308726,0.06,194.39,194.38,15.10621557]
[1755180309038,0.06,194.39,194.38,57.60621557]
[1755180310128,0.06,194.39,194.38,62.75077776]
[1755180310333,0.06,194.39,194.38,57.60621557]
[1755180310501,0.76,194.39,194.38,15.10621557]